Workbook

Sheet Modelo
B2: FABRICACION DE TORNILLOS 6" X 1/2 ACERO | F2: SIMULADOR INDUSTRIAL RESTRICCIONES
F3: Una planta industrial de mecanizado tiene en su centro de manufactura las siguientes maquinas, a través de simulación determine la capacidad utilizada y restricción.
B4: Turno/horas: | D4: 1
B5: Seg/turno | D5: =(D4*60*60)*(100%-D37) -> 3600
B6: Seg/Trascurridos: | D6: 132 | F6: RESTRICCION → | H6: =MAX(F10:F19) -> 10.2 | I6: =INDEX(B10:G19,MATCH(H6,F10:F19,0),2) -> Empaque | L6: =D6 -> 132 | M6: =L6-($D$5/20) -> -48 | N6: =M6-($D$5/20) -> -228 | O6: -408 | P6: -588 | Q6: -768 | R6: -948 | S6: -1128 | T6: -1308 | U6: -1488 | V6: -1668 | W6: -1848 | X6: -2028 | Y6: -2208 | Z6: -2388 | AA6: -2568 | AB6: -2748 | AC6: -2928 | AD6: -3108 | AE6: -3288 | AF6: =IFERROR(D6/D5,0) -> 0.03666666667
B7: % de ocupación | D7: =D6/D5 -> 0.03666666667
G8: ENTRADA | I8: SALIDA | M8: Unidades Optimas | W8: =D5/MIN(F10:F19) -> 1285.714286
B9: N° | C9: Maquina | F9: USP/seg | G9: Tiempo | H9: Unidades | I9: Tiempo | J9: Unidades | K9: ID
B10: 1 | C10: Corte varilla | F10: 4.5 | G10: =D5-I10 -> 3468 | H10: =G10/F10 -> 770.6666667 | I10: =$D$6 -> 132 | J10: =I10/F10 -> 29.33333333 | K10: =AF10 -> 0.02281481481 | L10: =J10 -> 29.33333333 | M10: =L10-($W$8/20) -> -34.95238095 | N10: =M10-($W$8/20) -> -99.23809524 | O10: -163.5238095 | P10: -227.8095238 | Q10: -292.0952381 | R10: -356.3809524 | S10: -420.6666667 | T10: -484.952381 | U10: -549.2380952 | V10: -613.5238095 | W10: -677.8095238 | X10: -742.0952381 | Y10: -806.3809524 | Z10: -870.6666667 | AA10: -934.952381 | AB10: -999.2380952 | AC10: -1063.52381 | AD10: -1127.809524 | AE10: -1192.095238 | AF10: =J10/$W$8 -> 0.02281481481
B11: 2 | C11: Troquelado cabeza | F11: 2.8 | G11: =H11*F11 -> 0 | H11: =J10-J11 -> 0 | I11: =$D$6 -> 132 | J11: =IF(J10>(I11/F11),(I11/F11),J10) -> 29.33333333 | K11: =AF11 -> 0.02281481481 | L11: =J11 -> 29.33333333 | M11: =L11-($W$8/20) -> -34.95238095 | N11: -99.23809524 | O11: -163.5238095 | P11: -227.8095238 | Q11: -292.0952381 | R11: -356.3809524 | S11: -420.6666667 | T11: -484.952381 | U11: -549.2380952 | V11: -613.5238095 | W11: -677.8095238 | X11: -742.0952381 | Y11: -806.3809524 | Z11: -870.6666667 | AA11: -934.952381 | AB11: -999.2380952 | AC11: -1063.52381 | AD11: -1127.809524 | AE11: -1192.095238 | AF11: =J11/$W$8 -> 0.02281481481
B12: 3 | C12: Roscado tornillo | F12: 6 | G12: =H12*F12 -> 44 | H12: =J11-J12 -> 7.333333333 | I12: =$D$6 -> 132 | J12: =IF(J11>(I12/F12),(I12/F12),J11) -> 22 | K12: 0.01711111111 | L12: 22 | M12: =L12-($W$8/20) -> -42.28571429 | N12: -106.5714286 | O12: -170.8571429 | P12: -235.1428571 | Q12: -299.4285714 | R12: -363.7142857 | S12: -428 | T12: -492.2857143 | U12: -556.5714286 | V12: -620.8571429 | W12: -685.1428571 | X12: -749.4285714 | Y12: -813.7142857 | Z12: -878 | AA12: -942.2857143 | AB12: -1006.571429 | AC12: -1070.857143 | AD12: -1135.142857 | AE12: -1199.428571 | AF12: 0.01711111111
B13: 4 | C13: Pulido | F13: 7.5 | G13: =H13*F13 -> 33 | H13: =J12-J13 -> 4.4 | I13: =$D$6 -> 132 | J13: =IF(J12>(I13/F13),(I13/F13),J12) -> 17.6 | K13: 0.01368888889 | L13: 17.6 | M13: =L13-($W$8/20) -> -46.68571429 | N13: -110.9714286 | O13: -175.2571429 | P13: -239.5428571 | Q13: -303.8285714 | R13: -368.1142857 | S13: -432.4 | T13: -496.6857143 | U13: -560.9714286 | V13: -625.2571429 | W13: -689.5428571 | X13: -753.8285714 | Y13: -818.1142857 | Z13: -882.4 | AA13: -946.6857143 | AB13: -1010.971429 | AC13: -1075.257143 | AD13: -1139.542857 | AE13: -1203.828571 | AF13: 0.01368888889
B14: 5 | C14: Empaque | F14: 10.2 | G14: =H14*F14 -> 47.52 | H14: =J13-J14 -> 4.658823529 | I14: =$D$6 -> 132 | J14: =IF(J13>(I14/F14),(I14/F14),J13) -> 12.94117647 | K14: 0.01006535948 | L14: 12.94117647 | M14: =L14-($W$8/20) -> -51.34453782 | N14: -115.6302521 | O14: -179.9159664 | P14: -244.2016807 | Q14: -308.487395 | R14: -372.7731092 | S14: -437.0588235 | T14: -501.3445378 | U14: -565.6302521 | V14: -629.9159664 | W14: -694.2016807 | X14: -758.487395 | Y14: -822.7731092 | Z14: -887.0588235 | AA14: -951.3445378 | AB14: -1015.630252 | AC14: -1079.915966 | AD14: -1144.201681 | AE14: -1208.487395 | AF14: 0.01006535948
F20: =SUM(F10:F19) -> 31 | H20: =SUM(H10:H19) -> 787.0588235
